bitfinex/quotes_ETHUSD_20260305
["timestamp","ask_amount","ask_price","bid_price","bid_amount"]
[1772730043762,3.71692609,2081.7,2080.5,0.0011]
[1772730043966,4.83531598,2081.5,2080.5,0.0011]
[1772730044370,4.83531598,2081.6,2080.5,0.0011]
[1772730044572,2.29492609,2081.5,2080.5,0.0011]
[1772730044746,1.20111463,2081.4,2080.5,0.0011]
[1772730045953,1.20111463,2081.4,2080.0,4.80878914]
[1772730045954,2.54038989,2081.0,2080.0,0.0011]
[1772730046398,1.422,2080.9,2080.0,0.0011]
[1772730046664,1.20146097,2080.8,2080.0,0.0011]
[1772730050343,1.20117234,2081.3,2080.0,0.0011]
[1772730053067,2.54038989,2081.1,2080.0,0.0011]
[1772730053273,2.29492609,2081.2,2080.0,0.0011]
[1772730053473,3.49609843,2081.3,2080.0,0.0011]
[1772730054747,3.49609843,2081.3,2080.2,0.0011]
[1772730054969,0.001,2081.1,2080.2,0.0011]
[1772730063867,0.001,2081.1,2080.3,0.3621782]
[1772730064065,0.001,2081.1,2080.2,0.0011]
[1772730064261,0.001,2081.1,2080.3,0.3621782]
[1772730064458,0.001,2081.1,2080.2,0.0011]
[1772730064670,1.20087484,2081.9,2080.4,0.21502099]
[1772730064861,1.20181351,2082.0,2080.6,0.14948499]
[1772730065069,1.20181351,2082.0,2080.8,0.14948499]
[1772730065404,0.001,2082.0,2080.9,1.20140323]
[1772730066882,0.001,2081.8,2080.9,1.20140323]
[1772730067582,0.002,2081.8,2080.9,1.20140323]
[1772730067896,0.001,2081.7,2080.9,1.20140323]
[1772730068380,0.001,2081.8,2080.9,1.20140323]
[1772730068581,0.002,2081.8,2080.9,1.20140323]
[1772730068883,0.001,2081.8,2081.0,0.14948499]
[1772730069086,0.001,2081.8,2081.1,1.09]
[1772730069578,0.001,2081.8,2081.2,1.20123005]
[1772730069779,0.002,2081.8,2081.2,1.20123005]
[1772730069988,0.001,2081.7,2081.2,1.20123005]
[1772730070184,0.001,2081.7,2080.7,7.13055426]
[1772730070185,0.001,2081.7,2080.8,4.80568987]
[1772730070388,0.001,2081.6,2080.9,1.09]
[1772730071274,0.001,2081.8,2081.0,0.14948499]
[1772730071452,0.001,2081.7,2081.0,1.2013455]
[1772730071957,0.001,2081.6,2080.5,1.20161242]
[1772730072154,0.001,2081.8,2080.5,1.20161242]
[1772730072371,0.001,2081.7,2080.5,1.20161242]
[1772730073287,0.001,2081.6,2080.4,0.03118032]
[1772730074060,0.001,2081.6,2080.4,1.23282531]
[1772730074377,0.001,2081.6,2080.4,0.03118032]
[1772730074959,0.001,2081.6,2080.4,1.23285674]
[1772730075167,0.001,2081.6,2080.5,0.3621782]
[1772730075489,0.001,2081.6,2080.4,1.23285674]
[1772730075688,0.001,2081.6,2080.4,2.32285674]
[1772730076087,0.001,2081.6,2080.4,1.23285674]
[1772730077375,0.001,2081.6,2080.4,1.59503494]
[1772730077771,0.001,2081.6,2080.4,1.23285674]
[1772730078567,0.001,2081.6,2080.5,1.091]
[1772730079702,0.001,2081.4,2080.5,1.091]
[1772730079904,0.001,2081.4,2080.7,1.20151871]
[1772730081178,0.001,2081.3,2080.7,1.20151871]
[1772730082192,0.001,2081.8,2080.7,1.20151871]
[1772730082399,0.001,2081.8,2080.8,0.065536]
[1772730082565,0.001,2081.8,2080.9,0.14948499]
[1772730082763,0.001,2081.8,2080.7,1.20151871]
[1772730083370,0.001,2081.8,2080.8,0.14948499]
[1772730084092,0.001,2081.8,2080.9,1.20140323]
[1772730086885,0.001,2081.8,2080.7,1.20151871]
[1772730087782,0.001,2081.8,2080.6,2.29255661]
[1772730088272,0.001,2081.8,2080.6,1.091]
[1772730088467,0.001,2081.8,2080.6,2.29257073]
[1772730091379,0.001,2081.8,2080.7,0.51166319]
[1772730091690,4.80307396,2082.3,2080.7,0.51166319]
[1772730091691,4.80122911,2082.9,2081.1,2.47397296]
[1772730091884,4.80122911,2082.9,2081.3,0.14948499]
[1772730092084,0.8653643,2082.7,2081.4,0.3621782]
[1772730092390,0.8653643,2082.7,2081.5,0.14948499]
[1772730092590,0.8653643,2082.7,2081.6,0.3621782]
[1772730092789,0.8653643,2082.7,2081.5,0.14948499]
[1772730093103,0.8653643,2082.5,2081.5,1.20105693]
[1772730093302,0.001,2081.6,2081.5,1.20105693]
[1772730093504,0.8653643,2082.3,2081.5,1.20105693]
[1772730094299,0.48727624,2082.5,2081.6,0.28412067]
[1772730094702,0.48727624,2082.5,2081.5,1.20105693]
[1772730095007,0.48727624,2082.3,2081.3,4.80422772]
[1772730096786,0.48727624,2082.3,2081.3,1.20117234]
[1772730097103,0.48727624,2082.1,2081.3,1.23120544]
[1772730097690,0.48727624,2082.1,2081.3,1.36584112]
[1772730098106,0.48727624,2082.1,2081.3,1.23120544]
[1772730099230,1.68803098,2082.1,2081.3,1.23120544]
[1772730099718,0.48727624,2082.0,2081.3,1.23120544]
[1772730100088,0.48727624,2082.0,2081.3,1.23123957]
[1772730100806,1.20065696,2082.2,2081.3,1.23123957]
[1772730101117,0.48727624,2082.2,2081.3,1.23123957]
[1772730101317,0.48727624,2082.1,2081.3,1.23123957]
[1772730102622,0.48727624,2082.1,2081.3,0.03006731]
[1772730102790,0.48727624,2082.1,2081.3,1.23123508]
[1772730102991,0.48727624,2082.1,2081.3,1.36587076]
[1772730103488,1.2006429,2082.3,2081.4,0.13463568]
[1772730103693,0.48727624,2082.2,2081.3,1.23123508]
[1772730104913,0.48727624,2082.2,2081.3,1.23233508]
[1772730105298,0.48727624,2082.0,2081.3,1.23233508]
[1772730108455,0.48727624,2082.4,2081.3,1.33690345]
[1772730109841,0.48727624,2082.4,2081.3,1.20226777]
[1772730110044,0.48727624,2082.4,2081.3,0.0011]
[1772730110217,0.48727624,2082.2,2081.3,0.0011]
[1772730112243,0.48727624,2082.0,2081.5,1.20105693]
[1772730112423,0.48727624,2082.5,2081.6,0.13463568]
[1772730112743,0.48727624,2082.5,2081.7,0.03006153]
[1772730114351,1.2004859,2082.5,2081.8,1.20088385]
[1772730114533,0.48727624,2082.4,2081.8,1.23094394]
[1772730116020,0.48727624,2082.4,2081.8,0.03006009]
[1772730116236,1.20059549,2082.3,2081.8,0.03006009]
[1772730116434,0.48727624,2082.2,2081.8,0.03006009]
[1772730116638,0.48727624,2082.2,2081.3,5.90177347]
[1772730116639,0.48727624,2082.2,2081.4,1.20107161]
[1772730116836,0.48727624,2082.2,2081.3,5.90160676]
[1772730116837,0.48727624,2082.2,2081.3,1.0971]
[1772730117045,0.48727624,2082.2,2081.3,0.0011]
[1772730117637,0.48727624,2082.2,2081.3,1.20226931]
[1772730118057,0.48727624,2082.2,2081.5,0.0011]
[1772730118353,0.4936982,2082.0,2081.5,0.0011]
[1772730120554,1.6944667,2082.0,2081.5,0.0011]
[1772730120728,0.4936982,2082.0,2081.5,0.0011]
[1772730122055,1.6944791,2082.0,2081.5,0.0011]
[1772730122834,1.6944791,2082.0,2081.3,1.20227234]
[1772730122835,0.4936982,2081.9,2081.3,0.0011]
[1772730124065,0.4936982,2082.2,2081.3,0.0011]
[1772730124433,0.4936982,2082.5,2081.5,0.13573568]
[1772730124660,0.4936982,2082.5,2081.4,4.5570666]
[1772730126049,0.4936982,2082.5,2081.5,0.13573568]
[1772730126253,0.4936982,2082.5,2081.5,2.39468765]
[1772730126460,1.69423604,2082.4,2081.6,1.20099923]
[1772730126759,0.4936982,2082.3,2081.6,1.20099923]
[1772730127163,0.4936982,2082.3,2081.7,0.02584247]
[1772730127364,1.69515851,2082.6,2081.7,0.02584247]
[1772730127872,0.4936982,2082.5,2081.7,0.02584247]
[1772730128771,1.20146031,2082.6,2081.7,0.02584247]
[1772730128772,0.4936982,2082.4,2081.8,1.20088385]
[1772730128945,0.4936982,2082.4,2081.8,1.22672508]
[1772730130963,0.001,2082.2,2081.8,1.22672508]
[1772730134053,0.4946982,2082.2,2081.8,1.22672508]
[1772730134672,0.4946982,2082.2,2081.8,1.22671426]
[1772730135473,0.001,2082.2,2081.8,1.20087303]
[1772730136543,1.69410394,2082.7,2081.8,1.20087303]
[1772730136754,0.4936982,2082.6,2081.8,1.33660871]
[1772730136956,0.4936982,2082.6,2081.9,0.13473568]
[1772730137156,0.4936982,2082.8,2082.0,1.57561255]
[1772730138286,0.4936982,2082.8,2082.0,1.101]
[1772730138494,0.4936982,2083.1,2082.1,0.47461255]
[1772730139070,0.4936982,2082.9,2082.3,1.20059549]
[1772730141284,1.69395671,2082.9,2082.3,1.20059549]
[1772730141895,0.4936982,2082.8,2082.2,0.02583626]
[1772730142263,0.4936982,2082.8,2081.7,0.47461255]
[1772730142556,0.4936982,2082.8,2081.7,1.20094153]
[1772730143284,1.69406311,2082.7,2081.9,1.20082616]
[1772730143493,0.4936982,2082.7,2082.0,0.47461255]
[1772730144083,0.4936982,2082.7,2082.0,0.47571255]
[1772730144459,0.4946982,2082.7,2082.0,0.47571255]
[1772730145166,0.001,2082.7,2082.2,1.6752657]
[1772730145689,0.001,2082.7,2082.2,1.20065315]
[1772730145890,0.4946982,2082.7,2082.0,1.20183395]
[1772730147288,1.20042254,2082.6,2082.0,1.68990743]
[1772730147489,1.69509761,2082.7,2082.0,1.68990743]
[1772730147865,0.4820296,2082.6,2082.0,1.20183395]
[1772730148386,1.20139941,2082.7,2082.0,1.68990743]
[1772730148593,1.20139178,2082.7,2082.0,1.68990743]
[1772730148963,0.001,2082.7,2082.0,1.68990743]
[1772730149585,0.4530156,2082.7,2082.0,1.68990743]
[1772730149785,0.4530156,2082.7,2082.0,1.20183395]
[1772730150377,0.4530156,2082.7,2082.1,0.46590529]
[1772730151087,0.001,2082.7,2082.1,0.46590529]
[1772730151289,2.10521386,2083.1,2082.3,0.46590529]
[1772730151794,2.10521386,2083.1,2082.2,1.20065315]
[1772730151795,0.4520156,2083.0,2082.2,1.20065315]
[1772730152391,1.65319826,2083.1,2082.3,0.46590529]
[1772730152392,0.45301559,2083.1,2082.3,0.46590529]
[1772730152807,0.90503119,2083.1,2082.3,0.46590529]
[1772730154094,2.10520341,2083.1,2082.4,1.20053784]
[1772730154264,0.90503119,2083.1,2082.4,1.20053784]
[1772730154465,0.90503119,2083.1,2082.5,0.46590529]
[1772730154466,0.45301559,2083.1,2082.5,0.46590529]
[1772730154697,0.45301559,2083.1,2082.6,0.46590529]
[1772730154904,0.45301559,2083.1,2082.6,0.49835377]
[1772730155468,0.38916589,2083.1,2082.8,0.46590529]
[1772730155669,0.38737901,2083.1,2082.8,0.46590529]
[1772730155871,0.38480343,2083.1,2082.8,0.46590529]
[1772730156179,0.44169866,2083.9,2083.0,0.46590529]
[1772730156379,1.19961147,2084.1,2083.1,0.46590529]
[1772730156872,1.19961147,2084.1,2083.2,0.46590529]
[1772730157081,1.19941861,2084.4,2083.3,0.46590529]
[1772730157409,1.64103079,2084.5,2083.3,0.46590529]
[1772730157767,1.64103079,2084.5,2083.4,0.46590529]
[1772730157971,1.64103079,2084.5,2083.6,0.46590529]
[1772730158207,4.25197947,2084.7,2083.8,0.46590529]
[1772730158369,8.23785539,2085.5,2083.8,0.46590529]
[1772730158370,4.79648131,2084.9,2083.8,0.46590529]
[1772730158583,0.44169866,2084.8,2083.8,0.46590529]
[1772730160194,1.64091197,2084.7,2083.9,1.19967368]
[1772730160398,0.44169866,2084.6,2083.8,1.66562176]
[1772730160710,0.44169866,2084.6,2083.5,1.57690529]
[1772730160871,0.44169866,2084.6,2083.6,0.46590529]
[1772730161799,1.19921331,2084.7,2083.6,0.46590529]
[1772730161999,1.19921331,2084.7,2083.8,0.46590529]
[1772730162196,1.19921331,2084.7,2084.0,1.66552141]
[1772730162398,1.19921331,2084.7,2084.1,0.02463716]
[1772730163099,1.19921331,2084.7,2084.0,1.68422087]
[1772730163480,1.19921331,2084.7,2084.0,0.46590529]
[1772730163909,1.64091197,2084.7,2084.0,0.46590529]
[1772730164683,1.64091197,2084.7,2084.0,1.66551528]
[1772730164882,1.64091197,2084.7,2084.0,0.46590529]
[1772730165106,0.44169866,2084.6,2083.7,0.46590529]
[1772730165571,0.44169866,2084.6,2083.8,0.01701248]
[1772730166714,1.19932837,2084.5,2083.9,1.66557897]
[1772730166879,0.44169866,2084.7,2084.0,0.01701085]
[1772730167208,0.44169866,2084.7,2084.0,0.48291614]
[1772730167391,1.19915579,2084.8,2084.1,0.48291532]
[1772730168292,1.64085445,2084.8,2084.1,0.48291532]
[1772730168514,1.64085445,2084.8,2084.1,0.01701003]
[1772730168515,0.44169866,2084.7,2084.1,0.01701003]
[1772730168810,1.19927084,2084.6,2084.1,0.01701003]
[1772730169526,1.6409695,2084.6,2084.1,0.01701003]
[1772730170399,1.19915579,2084.8,2084.2,0.46590529]
[1772730170695,0.44169866,2084.7,2084.1,0.01701003]
[1772730171003,1.20027084,2084.6,2084.1,0.01701003]
[1772730171201,1.20027084,2084.6,2084.1,1.21652752]
[1772730171581,1.20027084,2084.6,2084.1,0.01701003]
[1772730172873,1.6419695,2084.6,2084.1,0.01701003]
[1772730174080,1.20027084,2084.6,2084.1,0.01701003]
[1772730174484,1.20027084,2084.6,2084.1,0.48291532]
[1772730174903,0.001,2084.6,2084.1,0.48291532]
[1772730175098,0.001,2084.6,2084.1,0.46590529]
[1772730176996,0.001,2084.6,2084.2,0.46590529]
[1772730177716,0.001,2084.6,2084.2,1.66540315]
[1772730178088,0.001,2084.6,2084.1,0.46590529]
[1772730179506,0.001,2084.6,2084.1,1.68421846]
[1772730179813,0.001,2084.6,2084.1,0.48467764]
[1772730180522,0.001,2084.6,2084.1,1.68423036]
[1772730180693,0.001,2084.6,2084.2,0.48467764]
[1772730181210,0.001,2084.6,2084.3,0.48467764]
[1772730181989,1.64077042,2085.0,2084.3,0.48467764]
[1772730182218,5.9951598,2085.0,2084.5,0.48467764]
[1772730183092,7.19421969,2085.0,2084.6,0.48467764]
[1772730183302,0.48290012,2084.9,2084.4,0.01278031]
[1772730183690,7.19421969,2085.0,2084.4,1.6968388]
[1772730183892,7.67711981,2085.0,2084.4,1.6968388]
[1772730184093,7.19421969,2085.0,2084.4,1.6968388]
[1772730184314,7.19421969,2085.0,2084.5,0.48467764]
[1772730185815,0.48290012,2084.9,2084.4,0.01278031]
[1772730186186,5.9951598,2084.8,2084.5,0.48467764]
[1772730186993,1.19898326,2085.1,2084.5,0.48467764]
[1772730187189,7.19427728,2084.9,2084.5,0.48467764]
[1772730187392,1.19911748,2084.9,2084.5,0.48467764]
[1772730187591,5.9951598,2084.8,2084.5,0.48467764]
[1772730188004,5.9951598,2084.8,2084.3,1.68409695]
[1772730188318,1.19911748,2084.9,2084.3,1.68409695]
[1772730188514,5.9951598,2084.8,2084.3,1.68409695]
[1772730189493,5.9951598,2084.8,2084.4,0.48467764]
[1772730190420,1.19901671,2085.1,2084.3,1.19941931]
[1772730190727,0.48290012,2085.3,2084.4,0.48467764]
[1772730191019,0.48290012,2085.3,2084.2,2.7951329]
[1772730191215,0.48290012,2085.3,2084.3,0.48467764]
[1772730191416,0.48290012,2085.1,2084.4,1.68406355]
[1772730191597,4.9035039,2085.7,2084.4,1.68406355]
[1772730191598,1.19858088,2085.9,2084.5,0.48467764]
[1772730191802,5.73768246,2086.4,2084.4,3.45833788]
[1772730191803,0.48290012,2086.4,2085.1,0.48467764]
[1772730192003,0.48290012,2086.3,2085.3,1.08054175]
[1772730192197,0.48290012,2086.1,2084.8,0.41674086]
[1772730192391,0.48290012,2086.1,2084.8,2.25895197]
[1772730192704,0.48290012,2086.1,2084.7,0.48467764]
[1772730192906,0.48290012,2085.7,2084.7,0.48467764]
[1772730193220,0.48290012,2085.7,2084.4,1.19938591]
[1772730193221,0.48290012,2085.7,2084.5,0.48467764]
[1772730193521,1.68155169,2085.7,2084.7,0.48467764]
[1772730193721,3.06455169,2085.7,2084.7,0.48467764]
[1772730193912,1.68155169,2085.7,2084.7,0.48467764]
[1772730194112,3.06455169,2085.7,2084.7,0.48467764]
[1772730194516,0.48290012,2085.6,2084.7,0.48467764]
[1772730195317,1.383,2085.5,2084.7,0.48467764]
[1772730195511,1.19881077,2085.4,2084.7,0.48467764]
[1772730195824,1.19881077,2085.4,2084.5,1.19932837]
[1772730196030,1.19881077,2085.4,2084.5,1.68400601]
[1772730196193,1.19878084,2085.5,2084.6,0.48467764]
[1772730196599,1.383,2085.4,2084.6,0.48467764]
[1772730196822,1.72318579,2085.4,2084.5,1.19932837]
[1772730197029,0.48290012,2085.3,2084.5,1.19932837]
[1772730197512,2.58192576,2085.2,2084.5,1.70155391]
[1772730197824,1.383,2085.5,2084.6,0.48467764]
[1772730198044,4.79472661,2085.7,2084.6,0.48467764]
[1772730198045,1.19866937,2085.7,2084.6,0.48467764]
[1772730198221,1.383,2085.6,2084.6,0.48467764]
[1772730198551,0.48290012,2086.1,2084.8,0.48467764]
[1772730198703,0.48290012,2086.1,2085.0,0.48467764]
[1772730199022,1.383,2086.0,2085.0,0.48467764]
[1772730199230,1.19835106,2086.2,2085.0,0.48467764]
[1772730199729,4.79338034,2086.3,2085.2,0.48467764]
[1772730199730,0.48290012,2086.3,2085.2,0.48467764]
[1772730199931,1.383,2086.3,2085.2,0.48467764]
[1772730200225,1.383,2086.3,2085.1,1.76520911]
[1772730200226,1.68090663,2086.8,2085.4,0.48467764]
[1772730200432,4.79132254,2087.2,2085.4,0.48467764]
[1772730200433,0.88234312,2087.8,2087.1,0.48467764]
[1772730200610,1.19669076,2089.1,2087.8,0.48467764]
[1772730200812,0.48290012,2089.3,2087.9,0.14948499]
[1772730201155,0.48290012,2089.1,2087.6,0.48467764]
[1772730201302,0.48290012,2089.1,2087.7,0.48467764]
[1772730201500,1.86390012,2089.0,2087.7,0.48467764]
[1772730201726,1.19685944,2088.8,2087.7,1.68214797]
[1772730202037,1.381,2088.7,2087.7,1.68214797]
[1772730202246,1.19685944,2088.8,2087.8,0.14948499]
[1772730202532,2.57785944,2088.8,2087.7,0.48467764]
[1772730202845,0.48290012,2088.7,2087.3,1.68238552]
[1772730203066,2.57785944,2088.8,2087.3,1.68238552]
[1772730203067,1.19685944,2088.8,2087.5,0.48467764]
[1772730203204,4.78610724,2089.4,2087.9,0.48467764]
[1772730203404,0.48290012,2089.6,2087.7,0.14948499]
[1772730203405,1.1964411,2089.6,2088.3,0.48467764]
[1772730203632,0.48290012,2089.5,2088.3,0.48467764]
[1772730203851,0.48290012,2089.5,2088.4,1.19708868]
[1772730203852,1.19651574,2089.4,2088.4,1.19708868]
[1772730205338,1.19648674,2089.5,2088.5,0.14948499]
[1772730205534,1.19648674,2089.5,2088.4,1.19708868]
[1772730205721,1.19628672,2089.8,2088.4,1.68176632]
[1772730205910,1.19628672,2089.8,2088.5,0.48467764]
[1772730206111,0.48290012,2089.6,2088.2,3.87401439]
[1772730206334,0.48290012,2089.6,2087.9,1.19737521]
[1772730206510,0.48290012,2089.6,2087.9,1.68205285]
[1772730206840,0.48290012,2089.6,2087.6,7.4663196]
[1772730206841,0.48290012,2089.4,2087.6,3.87432354]
[1772730207129,0.48290012,2089.2,2087.7,0.48467764]
[1772730207539,1.10030958,2090.0,2088.5,1.25984039]
[1772730207707,1.19622948,2089.9,2088.7,0.14948499]
[1772730208127,1.10030958,2089.8,2088.7,0.14948499]
[1772730208454,1.19622948,2089.9,2088.7,1.25984039]
[1772730209454,2.27266465,2089.9,2088.7,1.25984039]
[1772730209963,0.8666119,2093.0,2090.1,0.61717301]
[1772730210158,4.29977194,2094.1,2090.1,0.61717301]
[1772730210159,1.37,2095.0,2090.9,0.14948499]
[1772730210328,1.19365928,2094.4,2092.9,2.47652557]
[1772730210532,1.19365928,2094.4,2093.1,2.47652557]
[1772730210727,1.01000976,2094.2,2090.9,1.23826279]
[1772730210928,2.58437612,2094.3,2091.2,1.23826279]
[1772730210929,1.01000976,2093.4,2091.2,1.23826279]
[1772730211128,2.51884012,2093.2,2091.2,1.23826279]
[1772730211357,0.065536,2093.0,2091.2,1.23826279]
[1772730211750,0.065536,2092.8,2091.2,1.23826279]
[1772730211949,1.19462894,2092.7,2091.2,1.23826279]
[1772730212736,4.77664357,2093.6,2091.6,1.38774778]
[1772730212967,1.07643517,2093.5,2091.6,1.23826279]
[1772730213183,0.065536,2093.3,2091.6,1.23826279]
[1772730213338,0.065536,2093.1,2091.6,1.23826279]
[1772730213757,1.07643517,2093.3,2091.6,1.23826279]
[1772730213963,0.065536,2093.1,2091.6,1.23826279]
[1772730214259,2.50034358,2093.2,2091.8,1.23826279]
[1772730215067,3.59527529,2092.9,2091.3,1.34731931]
[1772730215270,1.07643517,2092.8,2091.3,1.34731931]
[1772730215438,1.19434358,2093.2,2091.4,1.23826279]
[1772730215761,1.19434358,2093.2,2091.8,1.23826279]
[1772730215970,4.77737435,2093.4,2091.9,1.23826279]
[1772730216160,2.27049353,2093.7,2091.9,1.23826279]
[1772730216536,1.328,2093.4,2091.9,1.23826279]
[1772730216951,1.332,2093.4,2091.9,1.23826279]
[1772730217159,2.27049353,2093.7,2092.1,1.23826279]
[1772730217335,1.19405836,2093.7,2092.1,1.23826279]
[1772730218063,1.19405836,2093.7,2092.3,1.23826279]
[1772730218064,3.71289848,2093.7,2092.3,1.23826279]
[1772730218243,3.59527529,2093.4,2091.9,1.04825587]
[1772730218443,1.07643517,2093.4,2091.9,1.04825587]
[1772730218760,1.07643517,2093.4,2091.4,1.04825587]
[1772730218987,1.07643517,2093.2,2091.4,1.04825587]
[1772730219376,1.07643517,2093.2,2091.0,0.065536]
[1772730219377,3.59527529,2092.7,2090.6,1.04825587]
[1772730219660,1.07643517,2092.5,2090.6,1.04825587]
[1772730219969,2.39643517,2092.5,2090.6,1.04825587]
[1772730220172,1.19480022,2092.4,2090.8,1.04825587]
[1772730220580,0.72992741,2093.9,2091.4,1.04825587]
[1772730220782,1.07643517,2093.7,2091.6,1.04825587]
[1772730220934,1.07643517,2093.7,2091.5,1.19148499]
[1772730220935,1.07643517,2093.7,2091.9,0.14948499]
[1772730221247,1.07643517,2093.7,2091.9,1.19774086]
[1772730221676,1.07643517,2093.6,2091.9,1.04825587]
[1772730221858,1.07643517,2093.5,2091.9,1.04825587]
[1772730222377,1.07643517,2093.2,2091.4,2.24362739]
[1772730222749,1.07643517,2093.2,2091.4,1.04825587]
[1772730223573,1.07643517,2093.0,2090.9,2.24389908]
[1772730224394,1.19451478,2092.9,2090.9,1.19564321]
[1772730224680,2.52351478,2092.9,2091.0,0.14948499]
[1772730225962,1.19451478,2092.9,2091.0,0.14948499]
[1772730226363,4.77805915,2093.0,2091.1,1.19554301]
[1772730226582,7.29048345,2093.0,2091.1,1.19554301]
[1772730226787,7.29048345,2093.0,2090.8,1.19571455]
[1772730226987,2.5124243,2092.2,2090.3,0.10923331]
[1772730227170,2.5124243,2092.2,2090.1,4.784275]
[1772730227171,1.346,2092.1,2090.2,1.19605779]
[1772730228089,1.7430156,2092.0,2090.2,1.19605779]
[1772730228256,1.7430156,2092.0,2089.6,1.19640122]
[1772730228257,1.351536,2091.9,2089.6,1.19640122]
[1772730228460,1.19514293,2091.8,2089.6,1.19640122]
[1772730229262,1.19514293,2091.8,2089.8,0.14948499]
[1772730229589,1.19514293,2091.8,2090.0,0.21502099]
[1772730230401,0.5175516,2092.8,2090.2,0.21502099]
[1772730230573,0.4520156,2092.8,2090.4,0.21502099]
[1772730230987,0.4520156,2092.8,2090.7,0.14948499]
[1772730231190,0.4520156,2092.8,2090.9,0.21502099]
[1772730231403,0.4520156,2092.8,2090.9,0.61437656]
[1772730231799,0.4520156,2092.8,2091.1,0.21502099]
[1772730232487,1.19462894,2092.7,2091.3,0.21502099]
[1772730232914,1.19462894,2092.7,2091.2,1.19548584]
[1772730234498,4.77785663,2093.0,2091.0,0.14948499]
[1772730234499,4.77851579,2093.0,2091.0,0.14948499]
[1772730234700,4.77851579,2093.1,2091.0,0.14948499]
[1772730235110,4.77851579,2093.1,2091.0,1.21748499]
[1772730235510,0.4520156,2092.6,2091.0,1.21748499]
[1772730236109,0.4520156,2092.6,2091.0,1.22248499]
[1772730236624,0.4520156,2092.6,2090.7,1.43490739]
[1772730236625,1.19474313,2092.5,2090.7,4.78240076]
[1772730237125,1.19474313,2092.5,2090.8,0.14948499]
[1772730237349,1.64671775,2092.6,2090.8,2.34732231]
[1772730237491,1.64671775,2092.6,2091.2,0.14948499]
[1772730237915,1.64670432,2092.6,2091.2,0.14948499]
[1772730238134,1.64670432,2092.6,2091.2,2.28178631]
[1772730238740,1.64670432,2092.6,2091.4,0.14948499]
[1772730239431,1.64670432,2092.6,2091.3,3.32773]
[1772730240621,0.4520156,2092.6,2091.5,2.13230132]
[1772730240827,1.64670397,2092.6,2091.6,1.19525721]
[1772730241907,0.4520156,2092.6,2091.6,1.19525721]
[1772730242229,1.64670395,2092.6,2091.6,1.19525721]
[1772730242430,1.64670395,2092.6,2091.2,3.32778566]
[1772730242734,1.64670395,2092.6,2091.2,1.19548434]
[1772730242928,1.64670395,2092.6,2091.0,4.78239216]
[1772730243131,1.361,2092.5,2090.9,4.7825603]
[1772730243332,1.361,2092.5,2090.6,3.25527997]
[1772730243333,1.361,2092.5,2090.7,1.19577175]
[1772730244218,1.364,2092.5,2090.7,1.19577175]
[1772730244846,1.19480022,2092.4,2090.6,4.784087]
[1772730245730,1.19480022,2092.4,2090.6,0.001]
[1772730246660,0.4520156,2092.3,2090.6,0.001]
[1772730246828,2.56491444,2092.2,2090.6,0.001]
[1772730247031,1.19491444,2092.2,2090.6,0.001]
[1772730249340,4.77897252,2092.7,2090.9,2.21853812]
[1772730249935,0.4520156,2092.1,2090.9,2.21853812]
[1772730250160,0.4520156,2092.1,2090.6,2.21953812]
[1772730250365,0.4520156,2092.1,2090.7,2.21853812]
[1772730250664,0.4520156,2092.1,2090.8,2.36802311]
[1772730250850,0.4520156,2092.1,2091.0,0.14948499]
[1772730251161,0.4520156,2092.1,2091.0,2.36802311]
[1772730251350,0.4520156,2092.1,2090.8,1.19571455]
[1772730251351,1.64701655,2092.1,2090.8,1.19571455]
[1772730252872,1.64701655,2092.1,2091.1,0.001]
[1772730264399,1.19500095,2092.1,2091.1,0.001]
[1772730266169,4.77965777,2092.3,2091.1,0.001]
[1772730266368,4.77965777,2092.3,2091.3,0.001]
[1772730266369,0.4520156,2092.0,2091.3,0.001]
[1772730268287,1.1950858,2091.9,2091.3,0.001]
[1772730270486,1.381,2091.9,2091.3,0.001]
[1772730271602,0.4520156,2091.8,2091.3,0.001]
[1772730272691,1.19520007,2091.7,2091.3,0.001]
[1772730274007,1.19520007,2091.7,2091.1,0.001]
[1772730274612,1.19502868,2092.0,2091.1,0.001]
[1772730274812,1.19514293,2091.8,2091.1,0.001]
[1772730275884,0.4520156,2091.7,2091.1,0.001]
[1772730277717,1.19525721,2091.6,2091.1,0.001]
[1772730280132,4.78102887,2091.7,2091.3,0.001]
[1772730280335,0.002,2091.6,2091.3,0.001]
[1772730281140,0.4520156,2091.5,2091.3,0.001]
[1772730282138,1.19537152,2091.4,2091.3,0.001]
[1772730282326,1.64737736,2091.5,2091.3,0.001]
[1772730287138,1.64737488,2091.5,2091.3,0.001]
[1772730287839,0.4520156,2091.5,2091.3,0.001]
[1772730288645,1.64733601,2091.5,2091.3,0.001]
[1772730289037,0.4520156,2091.5,2091.3,0.001]
[1772730289348,0.002,2091.6,2091.3,0.001]
[1772730291316,2.5729563,2092.2,2091.3,0.001]
[1772730291317,1.19492394,2092.2,2091.3,0.001]
[1772730291646,0.4540156,2092.2,2091.3,0.001]
[1772730291832,0.4540156,2092.1,2091.3,0.001]
[1772730292038,0.4520156,2092.1,2091.3,0.001]
[1772730292338,0.002,2092.0,2091.3,0.001]
[1772730294046,0.4520156,2091.9,2091.3,0.001]
[1772730294544,0.002,2091.8,2091.1,0.001]
[1772730294757,0.002,2091.8,2091.1,1.19653611]
[1772730294916,0.002,2091.8,2091.5,0.001]
[1772730295547,1.19714293,2091.8,2091.5,0.001]
[1772730295926,0.002,2091.6,2091.5,0.001]
[1772730296338,0.002,2091.6,2091.3,0.001]
[1772730296539,0.4530156,2091.5,2091.3,0.001]
[1772730297754,1.19537152,2091.4,2091.3,0.001]
[1772730297953,0.002,2091.4,2090.6,1.19677175]
[1772730298120,0.4510156,2091.3,2090.6,1.19677175]
[1772730299144,0.4530156,2091.2,2090.6,1.19677175]
[1772730299347,0.4530156,2091.4,2090.6,1.19677175]
[1772730299550,1.19542868,2091.3,2090.6,0.001]
[1772730300332,0.4530156,2091.2,2090.6,0.001]
[1772730300925,0.4530156,2091.1,2090.6,0.001]
[1772730301128,1.19531436,2091.5,2090.6,0.001]
[1772730301346,0.002,2091.6,2090.6,0.001]
[1772730301863,0.002,2091.6,2090.7,1.081]
[1772730302065,0.002,2091.6,2090.8,2.22621499]
[1772730302833,0.002,2091.6,2090.8,3.30621499]
[1772730303164,0.002,2091.6,2090.8,1.08]
[1772730303457,0.002,2091.6,2090.8,3.30621499]
[1772730303767,0.002,2091.6,2091.0,2.22621499]
[1772730304863,0.002,2091.6,2090.9,3.42187236]
[1772730305425,0.002,2091.6,2090.9,2.27465737]
[1772730305829,0.002,2091.6,2090.9,4.50087236]